bitfinex/quotes_BTCUSD_20211001
["timestamp","ask_amount","ask_price","bid_price","bid_amount"]
[1633085576014,0.64460592,47135.0,47134.0,0.2973]
[1633085576819,0.64460592,47135.0,47134.0,2.7205]
[1633085577023,0.0004,47143.0,47142.0,0.03241552]
[1633085577216,0.0004,47143.0,47142.0,0.68701214]
[1633085577620,0.0004,47143.0,47142.0,0.37679695]
[1633085577821,0.0004,47143.0,47142.0,0.67052145]
[1633085578018,0.0004,47143.0,47142.0,0.22649452]
[1633085578219,1.60023208,47143.0,47142.0,0.03241552]
[1633085578420,1.82019708,47143.0,47142.0,0.03241552]
[1633085578720,0.220365,47143.0,47142.0,0.03241552]
[1633085578918,0.0004,47143.0,47142.0,0.03241552]
[1633085579118,0.0004,47143.0,47142.0,0.73626139]
[1633085579119,0.0002,47143.0,47142.0,0.73626139]
[1633085579318,0.0002,47143.0,47142.0,2.19701358]
[1633085579516,0.0002,47143.0,47142.0,1.88724671]
[1633085579721,0.0002,47147.0,47142.0,1.88845214]
[1633085579917,0.0002,47147.0,47143.0,0.2537925]
[1633085580118,0.09030121,47147.0,47142.0,0.03362095]
[1633085580322,0.0002,47147.0,47143.0,0.194074]
[1633085580518,0.0002,47147.0,47143.0,0.206561]
[1633085580718,0.0002,47147.0,47143.0,0.77900549]
[1633085580918,0.0002,47147.0,47143.0,1.70220549]
[1633085581118,0.0002,47147.0,47143.0,1.42828275]
[1633085581317,0.0002,47147.0,47143.0,1.41579575]
[1633085581518,0.00480814,47144.0,47143.0,1.41579575]
[1633085581720,8.14e-06,47144.0,47143.0,2.66579575]
[1633085581920,8.14e-06,47144.0,47143.0,3.84802364]
[1633085582122,0.0002,47150.0,47147.0,0.19528322]
[1633085582321,0.0002,47171.0,47150.0,0.24]
[1633085582523,0.0002,47172.0,47171.0,0.17156099]
[1633085582722,0.0002,47172.0,47171.0,0.36549399]
[1633085583122,0.07702662,47172.0,47171.0,0.32729399]
[1633085583320,0.0002,47172.0,47171.0,0.13336099]
[1633085584321,0.0002,47172.0,47171.0,0.13316099]
[1633085584525,0.16979238,47172.0,47170.0,0.2973]
[1633085584919,0.16979238,47172.0,47170.0,0.40298621]
[1633085585122,0.16979238,47172.0,47158.0,0.00123782]
[1633085585123,0.40298621,47170.0,47158.0,0.00123782]
[1633085585327,0.00125037,47159.0,47147.0,0.61610766]
[1633085585523,0.31092574,47169.0,47157.0,0.3]
[1633085585924,0.00122058,47163.0,47157.0,0.3]
[1633085586122,0.0002,47158.0,47157.0,0.3]
[1633085586321,0.0002,47158.0,47157.0,0.585314]
[1633085586522,0.0002,47158.0,47157.0,0.785314]
[1633085587323,0.00466673,47158.0,47157.0,0.785314]
[1633085587522,0.52615035,47170.0,47158.0,1.54073962]
[1633085587523,0.40298621,47170.0,47158.0,1.54073962]
[1633085587722,0.0002,47172.0,47170.0,0.40112879]
[1633085587929,0.0002,47177.0,47172.0,0.19517473]
[1633085588132,0.0002,47177.0,47176.0,0.00124266]
[1633085588325,0.36308117,47177.0,47176.0,0.193907]
[1633085588524,0.09376787,47177.0,47173.0,0.09740985]
[1633085588725,0.0002,47177.0,47174.0,0.193916]
[1633085588925,0.0002,47177.0,47175.0,0.193912]
[1633085589128,0.32005675,47192.0,47176.0,0.193908]
[1633085589324,0.26280482,47185.0,47177.0,0.33879598]
[1633085589524,0.00124002,47182.0,47175.0,0.18393734]
[1633085589725,0.00124002,47182.0,47177.0,0.21197]
[1633085589924,0.423923,47187.0,47178.0,0.3]
[1633085590126,0.0012548,47179.0,47178.0,0.3992078]
[1633085590325,0.21199103,47184.0,47178.0,0.3992078]
[1633085590524,0.21195716,47191.0,47178.0,0.3992078]
[1633085590525,0.00127701,47199.0,47178.0,0.3990078]
[1633085590727,0.00121619,47188.0,47179.0,0.32238404]
[1633085590927,0.00121619,47188.0,47180.0,0.09271016]
[1633085590928,0.11213689,47188.0,47180.0,0.09271016]
[1633085591127,0.317962,47185.0,47178.0,0.60295363]
[1633085591325,0.317962,47185.0,47180.0,0.09103988]
[1633085591596,0.317962,47185.0,47181.0,0.01709612]
[1633085591798,0.219965,47184.0,47181.0,0.35470926]
[1633085591996,0.219965,47184.0,47181.0,0.17037849]
[1633085592298,0.219965,47180.0,47171.0,0.3]
[1633085592499,0.855785,47179.0,47173.0,0.09218566]
[1633085592698,0.6443695,47179.0,47178.0,0.001]
[1633085593699,7.459e-05,47186.0,47181.0,0.61310727]
[1633085593897,0.2232,47184.0,47181.0,0.61310727]
[1633085594099,7.459e-05,47186.0,47172.0,0.20064]
[1633085594100,0.25423559,47181.0,47172.0,0.20064]
[1633085594298,0.63582,47180.0,47170.0,0.79799622]
[1633085594499,0.63582,47180.0,47179.0,0.001]
[1633085594700,0.855785,47180.0,47179.0,0.0008]
[1633085594905,0.92892596,47180.0,47179.0,0.0008]
[1633085595503,1.20223637,47180.0,47179.0,0.0006]
[1633085595701,1.20223637,47180.0,47176.0,0.0006]
[1633085595702,1.12909541,47180.0,47176.0,0.0006]
[1633085595903,0.219965,47179.0,47176.0,0.0006]
[1633085596101,0.63582,47178.0,47176.0,0.0006]
[1633085596404,0.219965,47177.0,47176.0,0.0004]
[1633085596600,0.855785,47177.0,47176.0,0.0004]
[1633085596802,1.26278221,47177.0,47176.0,0.0004]
[1633085597004,1.26278221,47177.0,47176.0,0.01268692]
[1633085597201,1.26404718,47177.0,47176.0,0.01248692]
[1633085597405,0.85704997,47177.0,47176.0,0.01248692]
[1633085597605,0.855785,47177.0,47176.0,0.01248692]
[1633085597805,0.855785,47177.0,47176.0,0.19046614]
[1633085598004,7.459e-05,47186.0,47176.0,1.64528695]
[1633085598208,7.459e-05,47186.0,47185.0,0.00123011]
[1633085598408,7.459e-05,47187.0,47185.0,0.99626021]
[1633085598605,7.459e-05,47187.0,47186.0,1.2180041]
[1633085598808,0.63584459,47187.0,47186.0,0.43063712]
[1633085599005,0.63584459,47187.0,47186.0,0.52956309]
[1633085599204,0.63584459,47187.0,47186.0,0.23551261]
[1633085599205,0.62584459,47187.0,47186.0,0.23551261]
[1633085599406,0.62584459,47187.0,47186.0,0.44091278]
[1633085599605,0.62584459,47187.0,47185.0,0.3]
[1633085600005,0.219965,47186.0,47185.0,0.2998]
[1633085600205,0.84580959,47186.0,47185.0,0.2998]
[1633085600407,0.84493903,47186.0,47185.0,0.2998]
[1633085600806,0.84493903,47186.0,47185.0,0.39224625]
[1633085601806,0.84493903,47186.0,47185.0,0.39204625]
[1633085602207,1.06941968,47186.0,47185.0,0.39204625]
[1633085602407,0.84121968,47186.0,47178.0,0.30444543]
[1633085602607,0.84121968,47186.0,47178.0,0.60444543]
[1633085602808,0.62584459,47186.0,47182.0,0.0743253]
[1633085603006,0.62584459,47186.0,47182.0,0.09389144]
[1633085603207,0.62584459,47186.0,47183.0,0.26786297]
[1633085603408,0.62584459,47186.0,47185.0,0.00120299]
[1633085603609,0.62584459,47186.0,47185.0,0.29107149]
[1633085603806,0.62584459,47186.0,47185.0,0.59087149]
[1633085604007,0.62584459,47186.0,47185.0,0.67980234]
[1633085604408,0.00124406,47201.0,47185.0,2.27858131]
[1633085604609,0.0004,47203.0,47200.0,0.00102187]
[1633085604807,0.0004,47203.0,47197.0,0.00129873]
[1633085604808,0.0004,47203.0,47201.0,0.20086403]
[1633085605007,0.0004,47203.0,47200.0,0.3]
[1633085605210,0.0004,47203.0,47201.0,0.4921207]
[1633085605411,0.0002,47202.0,47201.0,0.4921207]
[1633085605611,0.0002,47202.0,47201.0,0.58634155]
[1633085605811,0.0004,47204.0,47203.0,0.3]
[1633085606010,0.0004,47204.0,47203.0,0.85677765]
[1633085606213,0.0004,47204.0,47203.0,0.58790699]
[1633085606814,0.3247952,47214.0,47204.0,0.194643]
[1633085607014,0.0004,47217.0,47208.0,0.511633]
[1633085607211,0.0004,47217.0,47208.0,0.60658664]
[1633085607412,0.00125841,47215.0,47209.0,0.26621057]
[1633085607612,0.0004,47217.0,47209.0,0.27210674]
[1633085607811,0.0004,47217.0,47213.0,0.23026726]
[1633085607812,0.317757,47214.0,47213.0,0.23026726]
[1633085608015,0.317757,47214.0,47210.0,0.01271101]
[1633085608216,0.317757,47214.0,47211.0,0.09653432]
[1633085608613,0.317757,47214.0,47211.0,0.39653432]
[1633085609013,0.42536187,47216.0,47212.0,0.24554637]
[1633085609014,0.0004,47216.0,47212.0,0.24554637]
[1633085609215,0.00446152,47213.0,47211.0,0.39653432]
[1633085609414,0.00446152,47213.0,47211.0,0.39633432]
[1633085609613,0.219917,47212.0,47211.0,0.39633432]
[1633085609814,0.00446152,47213.0,47211.0,0.39633432]
[1633085610017,0.63662105,47212.0,47211.0,0.39633432]
[1633085610219,1.370036,47235.0,47234.0,0.44198802]
[1633085610419,0.220309,47235.0,47234.0,0.44323109]
[1633085610614,0.0004,47235.0,47234.0,0.44323109]
[1633085610815,0.0004,47235.0,47234.0,0.19823009]
[1633085611118,0.09107702,47234.0,47220.0,0.00120957]
[1633085611319,0.53364422,47233.0,47219.0,0.08430044]
[1633085611518,0.41027638,47232.0,47227.0,0.211726]
[1633085611715,0.23922945,47223.0,47220.0,0.3]
[1633085612117,0.00128917,47221.0,47220.0,0.3]
[1633085612316,0.01857017,47221.0,47220.0,0.3]
[1633085612515,0.017281,47221.0,47220.0,0.3]
[1633085612718,0.017281,47221.0,47220.0,1.32739103]
[1633085612918,0.017281,47221.0,47220.0,0.90286856]
[1633085613118,0.017281,47221.0,47220.0,0.61411264]
[1633085613315,0.017281,47221.0,47220.0,0.88868824]
[1633085613518,0.01736714,47221.0,47220.0,0.62782565]
[1633085613718,0.01736714,47221.0,47220.0,0.90766077]
[1633085613922,0.23922945,47223.0,47220.0,0.90746077]
[1633085614118,0.23922945,47223.0,47221.0,0.29992772]
[1633085614523,0.23794797,47236.0,47227.0,0.21170257]
[1633085614827,0.84,47244.0,47238.0,0.00122576]
[1633085615021,0.0006,47255.0,47250.0,0.9454]
[1633085615223,0.7906,47267.0,47250.0,0.9454]
[1633085615224,0.3803539,47270.0,47267.0,0.603125]
[1633085615423,0.1036947,47277.0,47268.0,0.62024738]
[1633085615424,0.84,47273.0,47268.0,0.62024738]
[1633085615624,0.84,47273.0,47267.0,0.39702302]
[1633085615625,0.1036947,47277.0,47272.0,0.002559]
[1633085615820,1.669909,47274.0,47256.0,0.2114414]
[1633085616020,0.9,47256.0,47250.0,0.3]
[1633085616223,0.00120282,47253.0,47243.0,0.00125096]
[1633085616423,0.00120282,47253.0,47237.0,0.211627]
[1633085616424,0.00124245,47244.0,47237.0,0.211627]
[1633085616621,0.0012589,47238.0,47235.0,0.10410677]
[1633085616822,0.0012589,47238.0,47230.0,0.09615781]
[1633085616823,0.00128212,47236.0,47230.0,0.09615781]
[1633085617021,0.001,47231.0,47223.0,0.21143]
[1633085617222,0.00120302,47239.0,47236.0,0.71689047]
[1633085617424,0.00129008,47250.0,47244.0,0.35820042]
[1633085617622,0.45205313,47265.0,47249.0,0.29870992]
[1633085617623,0.07040387,47253.0,47249.0,0.29870992]
[1633085617825,2.32072082,47266.0,47250.0,0.31458679]
[1633085617826,0.00122575,47266.0,47250.0,0.31458679]
[1633085618025,0.19436199,47277.0,47250.0,0.23936581]
[1633085618223,0.24347325,47265.0,47256.0,0.21150157]
[1633085618624,0.1036947,47277.0,47269.0,1.5]
[1633085618822,0.00169669,47284.0,47276.0,0.00109584]
[1633085618823,0.8404,47280.0,47276.0,0.00109584]
[1633085619026,0.0004,47284.0,47279.0,0.00128652]
[1633085619027,0.0001,47284.0,47279.0,0.00128652]
[1633085619222,0.0001,47284.0,47273.0,0.3955214]
[1633085619421,0.00129775,47281.0,47274.0,0.42128816]
[1633085619620,0.1138842,47283.0,47280.0,0.39586542]
[1633085619823,0.1138842,47283.0,47269.0,0.211459]
[1633085619824,0.0515552,47271.0,47269.0,0.211459]
[1633085620026,0.0515552,47271.0,47257.0,0.22649933]
[1633085620027,0.46590695,47264.0,47257.0,0.52224333]
[1633085620223,0.37055349,47270.0,47264.0,0.21683447]
[1633085620224,0.00124621,47270.0,47264.0,0.21683447]
[1633085620423,0.00121783,47278.0,47274.0,1.05670462]
[1633085620622,0.0037333,47288.0,47275.0,0.87617666]
[1633085620623,0.8404,47287.0,47275.0,0.87617666]
[1633085620823,0.0037333,47288.0,47279.0,0.00122626]
[1633085621022,0.0037333,47288.0,47276.0,0.11104603]
[1633085621023,0.0037333,47288.0,47282.0,0.61639848]
[1633085621221,0.00121078,47283.0,47282.0,0.19360848]
[1633085621422,0.2211199,47283.0,47277.0,0.33747924]
[1633085621625,0.0012729,47283.0,47277.0,0.43449605]
[1633085621823,0.0012729,47283.0,47277.0,0.09701681]
[1633085622023,0.0037333,47288.0,47276.0,0.3]
[1633085622024,0.00127807,47279.0,47276.0,0.3]
[1633085622422,0.00127807,47279.0,47276.0,0.2998]
[1633085622621,0.24272127,47273.0,47263.0,0.461386]
[1633085622826,0.46943901,47272.0,47263.0,0.06553572]
[1633085623026,0.0012984,47267.0,47263.0,0.06553572]
[1633085623230,0.00126668,47260.0,47259.0,0.20056]
[1633085624023,0.00126668,47260.0,47257.0,0.10733529]
[1633085624229,0.00136294,47260.0,47257.0,0.40733529]
[1633085624624,9.626e-05,47260.0,47257.0,0.61889829]
[1633085624925,9.626e-05,47260.0,47257.0,0.61869829]
[1633085625125,0.45248662,47258.0,47257.0,0.01502733]
[1633085625323,0.00248662,47258.0,47257.0,0.01502733]
[1633085625525,0.4369409,47258.0,47257.0,0.01502733]
[1633085625725,1.4335879,47258.0,47249.0,0.3]
[1633085625925,0.73188218,47257.0,47249.0,0.3]
[1633085626125,0.219847,47256.0,47249.0,0.3]
[1633085626327,0.219847,47256.0,47220.0,0.36084503]
[1633085626328,0.1114,47242.0,47220.0,0.36084503]
[1633085626529,0.00126865,47228.0,47223.0,0.3]
[1633085626729,0.21801055,47233.0,47223.0,0.39870664]
[1633085626929,0.00122294,47256.0,47249.0,0.31511573]
[1633085627128,0.52,47259.0,47257.0,0.10709533]
[1633085627488,0.0012342,47267.0,47242.0,0.62482618]
[1633085627489,0.01619249,47257.0,47242.0,0.62482618]
[1633085627628,0.09090284,47257.0,47242.0,0.61982618]
[1633085627828,0.28143939,47252.0,47249.0,0.39867547]
[1633085628029,0.28143939,47252.0,47249.0,0.39847547]
[1633085628229,0.09090284,47257.0,47250.0,0.09502979]
[1633085628427,0.09090284,47257.0,47250.0,0.21516506]
[1633085628629,0.09090284,47257.0,47249.0,0.60844658]
[1633085628829,0.09090284,47257.0,47249.0,0.511199]
[1633085628830,0.08590284,47257.0,47249.0,0.511199]
[1633085629028,0.23175904,47250.0,47249.0,0.511199]
[1633085629236,0.001,47268.0,47249.0,0.511199]
[1633085629237,0.0012481,47271.0,47263.0,0.9]
[1633085629431,1.5,47287.0,47271.0,0.21147279]
[1633085629631,1.5,47287.0,47270.0,0.00107479]
[1633085629632,0.0012362,47281.0,47270.0,0.00107479]
[1633085630030,0.0037333,47288.0,47280.0,0.00125034]
[1633085630229,0.1911047,47285.0,47280.0,0.00125034]
[1633085630530,0.1911047,47285.0,47273.0,0.0149494]
[1633085630531,0.2232,47283.0,47276.0,0.2996]
[1633085630729,0.11151099,47277.0,47276.0,0.2996]
[1633085631128,0.23351814,47278.0,47276.0,0.2996]
[1633085631329,0.00129389,47278.0,47276.0,0.2996]
[1633085631530,0.00129389,47278.0,47276.0,0.2994]
[1633085632330,1.4232,47277.0,47276.0,0.10993104]
[1633085632530,0.214847,47273.0,47271.0,0.3]
[1633085632730,0.00126402,47267.0,47256.0,1.181]
[1633085632932,0.00126402,47267.0,47263.0,0.00127206]
[1633085633131,0.3,47271.0,47264.0,0.18727873]
[1633085633330,0.2802858,47271.0,47265.0,1.55275797]
[1633085633529,0.2802858,47271.0,47265.0,1.51213968]
[1633085633729,0.2802858,47271.0,47265.0,1.17042968]
[1633085633932,0.2802858,47271.0,47267.0,0.37322559]
[1633085634130,0.2802858,47271.0,47268.0,1.17042968]
[1633085634329,0.2802858,47271.0,47268.0,1.67022968]
[1633085634532,0.2802858,47271.0,47267.0,0.37322559]
[1633085634730,0.2802858,47271.0,47264.0,0.211497]
[1633085634933,0.00126317,47265.0,47261.0,0.2499]
[1633085635132,0.43362883,47270.0,47251.0,0.0008]
[1633085635133,0.57423584,47259.0,47251.0,0.0008]
[1633085635332,0.00250655,47252.0,47251.0,0.0008]
[1633085635730,0.08432711,47255.0,47251.0,0.37391064]
[1633085636132,0.35101099,47254.0,47251.0,0.0006]
[1633085636333,0.57423584,47259.0,47251.0,0.0006]
[1633085636334,0.00250619,47252.0,47251.0,0.0006]
[1633085636533,0.57423584,47259.0,47251.0,0.2238]
[1633085636730,0.57423584,47259.0,47251.0,0.0006]
[1633085636932,0.00125243,47252.0,47251.0,0.0004]
[1633085637334,0.00121175,47257.0,47251.0,0.0004]
[1633085637533,0.00121175,47257.0,47252.0,0.00344788]
[1633085637731,0.33,47266.0,47259.0,0.49261459]
[1633085637932,0.0037333,47288.0,47267.0,0.04542277]
[1633085638135,0.0037333,47288.0,47268.0,1.79047281]
[1633085638332,0.0037333,47288.0,47270.0,0.4]
[1633085638534,0.0037333,47288.0,47287.0,0.09384146]
[1633085638732,0.0037333,47288.0,47268.0,0.1651865]
[1633085638733,0.2269333,47288.0,47268.0,0.1651865]
[1633085638934,0.00122357,47279.0,47266.0,0.08162125]
[1633085639135,0.45936052,47281.0,47267.0,0.9]
[1633085639332,0.45646952,47282.0,47266.0,0.08162125]
[1633085639534,0.45646952,47282.0,47277.0,0.001]
[1633085639737,0.00126575,47278.0,47268.0,0.001]
[1633085639934,0.00126575,47278.0,47266.0,0.08162125]
[1633085639935,0.00121522,47271.0,47266.0,0.08162125]
[1633085640432,0.3777484,47280.0,47266.0,0.08162125]
[1633085640630,0.23293853,47271.0,47266.0,0.08162125]
[1633085640833,0.23293853,47271.0,47270.0,0.07623205]
[1633085641031,0.00128982,47280.0,47270.0,0.07603205]
[1633085641332,0.45646952,47282.0,47277.0,0.00126055]
[1633085641532,0.45646952,47282.0,47276.0,0.001]
[1633085641936,0.23571088,47278.0,47276.0,0.0008]
[1633085642132,0.56523766,47282.0,47276.0,0.0008]
[1633085642337,0.0037333,47288.0,47282.0,0.49695182]
[1633085642536,0.0037333,47288.0,47287.0,0.08648962]
[1633085642732,0.0037333,47288.0,47287.0,0.08527459]
[1633085642932,0.0037333,47288.0,47287.0,0.08507459]
[1633085643333,0.0006,47295.0,47287.0,0.53602055]
[1633085643538,0.0004,47303.0,47300.0,0.08447459]
[1633085643734,0.0002,47305.0,47301.0,0.04326938]
[1633085643933,0.0002,47305.0,47304.0,0.00128093]
[1633085644134,0.0002,47305.0,47300.0,0.1214276]
[1633085644332,0.0002,47305.0,47301.0,0.62312723]
[1633085644532,0.0002,47305.0,47302.0,0.711141]
[1633085644935,0.0002,47305.0,47304.0,0.00123236]
[1633085645133,0.0002,47307.0,47305.0,0.4998]
[1633085645332,0.0004,47314.0,47303.0,1.5]
[1633085645539,0.0026,47350.0,47348.0,0.32311483]
[1633085645740,0.0006,47356.0,47348.0,0.32311483]
[1633085645741,0.0006,47364.0,47363.0,0.78848645]
[1633085645934,0.0002,47369.0,47364.0,0.65]
[1633085646133,0.28122179,47370.0,47367.0,0.316557]
[1633085646335,0.0006,47381.0,47370.0,1.25128139]
[1633085646533,0.0006,47381.0,47375.0,0.0020407]
[1633085646732,0.0006,47381.0,47375.0,0.0018407]
[1633085646733,0.08276616,47380.0,47375.0,0.0018407]
[1633085646936,0.21706464,47392.0,47370.0,0.00128139]
[1633085646937,0.211041,47372.0,47370.0,0.00128139]
[1633085647134,0.211041,47372.0,47369.0,0.20845006]
[1633085647335,0.211041,47372.0,47364.0,0.00123678]
[1633085647538,0.20262437,47380.0,47372.0,0.18043931]
[1633085647735,0.09758192,47389.0,47379.0,0.00124405]
[1633085648131,0.09758192,47389.0,47378.0,0.56148278]
[1633085648332,0.36150469,47387.0,47383.0,0.32606785]
[1633085648531,0.00186204,47394.0,47379.0,0.33822024]
[1633085648734,0.0006,47394.0,47382.0,0.00126651]
[1633085648935,0.0006,47394.0,47382.0,0.00252515]
[1633085649132,0.00129096,47387.0,47372.0,0.07728466]
[1633085649333,0.00129096,47387.0,47372.0,0.39255158]
[1633085649533,0.0006,47394.0,47376.0,0.30022453]
[1633085649733,0.0006,47394.0,47377.0,0.03539109]
[1633085649932,0.18939626,47389.0,47377.0,0.03539109]
[1633085650139,0.18939626,47389.0,47372.0,0.07579358]
[1633085650334,0.18939626,47389.0,47378.0,0.00103848]
[1633085650535,0.38349609,47388.0,47372.0,0.07579358]
[1633085650735,0.00127511,47373.0,47361.0,0.00128671]
[1633085650935,0.00124083,47375.0,47358.0,0.0999]
[1633085651134,0.00126135,47365.0,47358.0,0.0999]
[1633085651335,0.37234286,47367.0,47363.0,0.66606129]
[1633085651539,0.12380978,47368.0,47363.0,0.66606129]
[1633085651736,0.66605,47363.0,47358.0,0.0999]
[1633085651939,0.219845,47362.0,47358.0,0.0179]
[1633085652136,0.66605,47363.0,47356.0,0.0012892]
[1633085652336,0.00121781,47357.0,47349.0,0.69029461]
[1633085652536,0.45027322,47361.0,47349.0,0.69009461]
[1633085652742,0.66605,47363.0,47351.0,0.422175]
[1633085652936,0.09891619,47358.0,47349.0,0.68984951]
[1633085653136,0.66605,47363.0,47361.0,0.09802171]
[1633085653339,0.64225,47363.0,47361.0,0.00123217]
[1633085653535,0.64225,47363.0,47359.0,0.30771184]
[1633085653936,0.64225,47363.0,47357.0,0.00100455]
[1633085654138,0.20577782,47360.0,47357.0,0.00100455]
[1633085654337,0.29230767,47360.0,47354.0,0.20026]
[1633085654537,0.29230767,47360.0,47350.0,0.00128725]
[1633085654738,0.20577782,47360.0,47350.0,0.00128725]
[1633085654938,0.27531708,47357.0,47350.0,0.00128725]
[1633085655142,0.27656226,47357.0,47356.0,0.00074425]
[1633085655341,1.5,47356.0,47349.0,0.68984951]
[1633085655540,0.20577782,47360.0,47349.0,0.68984951]
[1633085655741,0.08580232,47355.0,47349.0,0.68964942]
[1633085656142,1.50129619,47350.0,47349.0,0.68944942]
[1633085656342,0.35637942,47349.0,47335.0,1.181]
[1633085656539,0.34039538,47340.0,47335.0,1.181]
[1633085656941,0.35637942,47349.0,47337.0,0.2232]
[1633085657139,0.35637942,47349.0,47338.0,0.30639598]
[1633085657339,0.05497942,47349.0,47345.0,0.21108842]
[1633085657599,0.05497942,47349.0,47338.0,0.00129874]
[1633085657600,0.05397053,47349.0,47338.0,0.31889475]
[1633085657799,0.05397053,47349.0,47336.0,0.00843246]
[1633085658004,0.05397053,47349.0,47348.0,0.07684715]
[1633085658400,0.05397053,47349.0,47345.0,0.33540032]
[1633085658603,0.64225,47363.0,47350.0,1.5]
[1633085658801,0.64225,47363.0,47355.0,0.211045]
[1633085659301,0.64225,47363.0,47354.0,0.00121491]
[1633085659302,0.31657008,47355.0,47354.0,0.126]
[1633085659500,0.45,47354.0,47349.0,0.05397053]
[1633085659700,0.35112386,47353.0,47349.0,0.05397053]
[1633085659901,0.05397053,47349.0,47334.0,1.09]
[1633085660101,0.05397053,47349.0,47336.0,0.00823246]
[1633085660102,0.11025177,47337.0,47336.0,0.00823246]
[1633085660300,0.30006598,47338.0,47336.0,0.00823246]
[1633085660503,0.29486807,47337.0,47336.0,0.00823246]
[1633085660702,0.61180307,47337.0,47336.0,0.00823246]
[1633085660900,0.61302129,47337.0,47336.0,0.00803246]
[1633085661100,0.81923202,47337.0,47336.0,0.00803246]
[1633085661702,0.81923202,47337.0,47330.0,0.22179046]
[1633085661703,0.59938702,47337.0,47330.0,0.22179046]
[1633085661903,0.20621073,47337.0,47330.0,0.22159046]
[1633085662103,0.00126457,47331.0,47330.0,0.22159046]
[1633085662405,0.0012756,47331.0,47330.0,0.21159046]
[1633085662802,0.00128155,47339.0,47330.0,0.50530987]
[1633085663005,0.09537564,47350.0,47336.0,0.00252902]
[1633085663203,0.09415772,47350.0,47336.0,0.00252902]
[1633085663401,0.11743569,47342.0,47336.0,0.00252902]
[1633085663806,0.17595597,47341.0,47336.0,0.00232902]
[1633085664205,1.50125185,47337.0,47336.0,0.00232902]
[1633085664405,0.68100791,47337.0,47336.0,0.00232902]
[1633085664608,0.05,47341.0,47336.0,0.00012902]
[1633085664805,0.57711892,47340.0,47336.0,9.02e-06]
[1633085665008,0.00123568,47325.0,47316.0,0.20088]
[1633085665209,0.00122667,47317.0,47316.0,0.15528]
[1633085665411,0.04754666,47321.0,47316.0,0.15528]
[1633085665613,0.26108675,47321.0,47317.0,0.09242912]
[1633085665809,0.26108675,47321.0,47317.0,0.09222912]
[1633085666007,0.04754666,47321.0,47320.0,0.00259176]
[1633085666411,0.04754666,47321.0,47315.0,0.35246463]
[1633085666615,0.04754666,47321.0,47315.0,0.0008]
[1633085666818,0.00122408,47319.0,47315.0,0.0008]
[1633085667019,0.00120356,47316.0,47315.0,0.0008]
[1633085667218,0.00120356,47316.0,47300.0,0.09491931]
[1633085667416,0.00120356,47316.0,47286.0,0.00258252]
[1633085667417,0.05,47308.0,47286.0,0.00258252]
[1633085667615,0.05,47308.0,47297.0,0.28231217]
[1633085667815,0.00840532,47307.0,47297.0,0.28211217]
[1633085668217,0.20682587,47298.0,47297.0,0.28211217]
[1633085668415,0.05,47308.0,47297.0,0.28211217]
[1633085668615,0.35362558,47307.0,47297.0,0.28191217]
[1633085668815,0.00126362,47306.0,47286.0,0.00257574]
[1633085669417,0.09314553,47306.0,47286.0,0.00237574]
[1633085669618,0.07098415,47295.0,47286.0,0.00109444]
[1633085669818,0.00128727,47289.0,47286.0,0.00109444]
[1633085670020,0.05,47292.0,47281.0,0.5274274]
[1633085670418,0.05,47292.0,47281.0,0.5272274]
[1633085670617,0.22027737,47293.0,47283.0,0.00125068]
[1633085670818,0.22027737,47293.0,47292.0,0.31855572]
[1633085671020,0.21527737,47293.0,47292.0,0.31855572]
[1633085671218,0.00122691,47305.0,47292.0,0.84175572]
[1633085671422,0.00122691,47305.0,47298.0,0.00124221]
[1633085671620,0.00122691,47305.0,47293.0,0.32034247]
[1633085671819,0.00122691,47305.0,47292.0,0.61835572]
[1633085672018,0.00122691,47305.0,47300.0,0.2894266]
[1633085672218,0.00122763,47308.0,47294.0,0.00122179]
[1633085672219,0.2232,47303.0,47294.0,0.00122179]
[1633085672418,0.2232,47303.0,47282.0,0.33128322]
[1633085672419,0.00124672,47301.0,47282.0,0.33128322]
[1633085672820,0.34765627,47302.0,47292.0,0.09286697]
[1633085673018,0.23696187,47304.0,47292.0,0.09266697]
[1633085673219,0.21798113,47296.0,47292.0,0.09266697]
[1633085673422,0.00843121,47300.0,47292.0,0.09266697]
[1633085673819,0.10512419,47299.0,47292.0,0.00823998]
[1633085674018,0.00123798,47301.0,47292.0,0.00803998]
[1633085674319,0.18161801,47300.0,47292.0,0.00803998]
[1633085674518,0.219845,47299.0,47292.0,0.00803998]
[1633085674719,0.0892068,47298.0,47292.0,0.00803998]
[1633085674919,0.10751846,47297.0,47292.0,0.00803998]
[1633085675119,0.10751846,47297.0,47292.0,0.00683998]
[1633085675319,0.219845,47296.0,47292.0,0.00683998]
[1633085675522,0.2232,47294.0,47292.0,0.00683998]
[1633085675723,0.219845,47293.0,47292.0,0.00683998]
[1633085675928,0.18161801,47300.0,47292.0,0.00663998]
[1633085676722,0.09263308,47298.0,47293.0,0.0797753]
[1633085676922,0.18161801,47300.0,47293.0,0.0795753]
[1633085677124,0.211427,47304.0,47293.0,0.08086485]
[1633085677524,0.211427,47304.0,47293.0,0.0808733]
[1633085677723,0.211427,47304.0,47292.0,0.00663998]
[1633085677724,0.09346839,47302.0,47298.0,0.00107097]
[1633085677924,0.09346839,47302.0,47292.0,0.31312223]
[1633085677925,0.12451893,47300.0,47292.0,0.00663998]
[1633085678125,0.19666987,47297.0,47292.0,0.00663998]
[1633085678323,0.211427,47304.0,47293.0,0.00121192]
[1633085678525,0.211427,47304.0,47293.0,0.00101192]
[1633085678723,0.211427,47304.0,47291.0,0.28502446]
[1633085678926,0.00922396,47296.0,47291.0,0.28502446]
[1633085679322,0.21271561,47304.0,47292.0,0.09778914]
[1633085679524,0.17569972,47296.0,47292.0,0.09778914]
[1633085679725,0.21341467,47280.0,47274.0,0.21143904]
[1633085679926,0.21341467,47280.0,47278.0,0.08218]
[1633085679927,1.94838628,47279.0,47278.0,0.08218]
[1633085680126,0.22105019,47279.0,47270.0,0.213]
[1633085680326,0.21341467,47280.0,47271.0,0.0012464]
[1633085680526,0.21341467,47280.0,47279.0,0.70120188]
[1633085680726,0.0224983,47291.0,47280.0,0.0755117]
[1633085680925,0.211491,47290.0,47280.0,0.0755117]
[1633085681127,0.219845,47289.0,47280.0,0.0755117]
[1633085681326,0.211491,47290.0,47280.0,0.0755117]
[1633085681327,0.211491,47290.0,47280.0,0.0753117]
[1633085681528,0.0224983,47291.0,47281.0,0.3285992]
[1633085681730,0.0224983,47291.0,47285.0,0.00122977]
[1633085681928,0.0224983,47291.0,47286.0,0.27838603]
[1633085682127,0.0224983,47291.0,47280.0,0.0753117]
[1633085682326,0.00129124,47287.0,47280.0,0.0753117]